[Event "Croatian 1A League 2022"]
[Site "Porec"]
[Date "2022.09.27"]
[Round "4.20"]
[White "Saric, Ibro"]
[Black "Erdos, Viktor"]
[Result "1/2-1/2"]
[WhiteElo "2542"]
[BlackElo "2597"]
[Annotator "TA"]
[PlyCount "36"]
[EventDate "2022.09.24"]
[EventType "team-tourn"]
[EventCountry "CRO"]
[SourceTitle "playchess.com"]
[Source "ChessBase"]
[SourceQuality "1"]
[TimeControl "40/5400+30:1800+30"]

{[%evp 9,16,10,18,8,15,17,0,-1,-8]} 1. Nf3 {[%emt 0:01:15]} c5 {[%emt 0:03:17]} 2. g3 {[%emt 0:02:36]} Nc6 {[%emt 0:00:52]} 3. Bg2 {[%emt 0:01:33]} Nf6 {[%emt 0:01:57]} 4. O-O {[%emt 0:02:39]} e5 {[%emt 0:01:56]} 5. e4 {[%emt 0:05:16]} Be7 {[%emt 0:01:44] The position is equal.} 6. Re1 {[%emt 0:09:33] B30: Sicilian: 2...Nc6 3 Bb5, lines without ...g6.} O-O {[%emt 0:00:54]} 7. c3 {[%emt 0:01:04]} d6 {[%emt 0:05:20]} 8. h3 {[%emt 0:01:37]} Be6 {[%emt 0:05:09] [#] Not much happened in this game.  Weighted Error Value: White=0.00 (flawless) /Black=0.04 (flawless)} {Predecessor:} 9. d4 $146 exd4 10. cxd4 cxd4 11. Nxd4 Nxd4 12. Qxd4 d5 13. e5 Ne4 14. Be3 Bc5 15. Qd3 Qb6 16. Bxc5 Qxc5 17. Qe3 Qxe3 18. Rxe3 Nc5 {1-0 (69) Donchenko,A (2659)-Wojtaszek,R (2694) Tornelo INT 2021} 1/2-1/2

[Event "Croatian 1A League 2022"]
[Site "Porec"]
[Date "2022.09.27"]
[Round "4.21"]
[White "Muse, Drazen"]
[Black "Saric, Ante"]
[Result "1/2-1/2"]
[ECO "D05"]
[WhiteElo "2311"]
[BlackElo "2510"]
[Annotator "TA"]
[PlyCount "59"]
[EventDate "2022.09.24"]
[EventType "team-tourn"]
[EventCountry "CRO"]
[SourceTitle "playchess.com"]
[Source "ChessBase"]
[SourceQuality "1"]
[TimeControl "40/5400+30:1800+30"]

{[%evp 10,59,12,5,5,6,11,12,4,8,0,0,0,-1,-10,-29,-29,-50,-8,-17,0,-6,0,-3,5,-17,0,0,0,-19,-6,-16,0,0,0,0,17,0,0,0,0,0,0,0,0,-12,0,0,0,0,0,0]} 1. Nf3 {[%emt 0:00:10]} Nf6 {[%emt 0:01:14]} 2. d4 {[%emt 0:01:33]} e6 {[%emt 0:00:19]} 3. e3 {[%emt 0:01:34]} c5 {[%emt 0:00:51]} 4. Bd3 {[%emt 0:00:42]} d5 {[%emt 0:00:23]} 5. b3 {[%emt 0:00:15]} Nc6 {[%emt 0:02:19]} 6. O-O {[%emt 0:00:11]} b6 {[%emt 0:01:16] D05: Colle System with ...e6.} 7. Bb2 {[%emt 0:00:16]} Bb7 {[%emt 0:00:13]} 8. Nbd2 {[%emt 0:00:20]} Rc8 $1 {[%emt 0:02:23][%mdl 4] outshines the older 8...Be7.} 9. a3 {[%emt 0:00:07]} Bd6 {[%emt 0:00:37]} 10. Ne5 {[%emt 0:01:24]} O-O {[%emt 0:00:33]} 11. f4 {[%emt 0:00:29]} Ne7 {[%emt 0:00:34]} 12. Qe2 {[%emt 0:05:27]} Ne4 {[%emt 0:05:43] [#]} 13. c3 $146 {[%emt 0:19:57]} ({Predecessor:} 13. dxc5 Bxc5 14. b4 {½-½ (14) Sedlak,N (2549)-Perunovic,M (2614) Kragujevac 2015}) 13... Nxd2 {[%emt 0:18:38]} (13... Nf5 {seems wilder.} 14. Rac1 Qc7 15. c4 Qe7) 14. Qxd2 {[%emt 0:06:24] The position is equal.} f6 {[%emt 0:00:23]} 15. Nf3 {[%emt 0:00:42]} Qd7 {[%emt 0:05:50]} 16. Qe2 {[%emt 0:17:47]} Nc6 {[%emt 0:12:17]} 17. b4 {[%emt 0:05:13]} c4 {[%emt 0:07:52]} 18. Bc2 {[%emt 0:00:11]} Ne7 {[%emt 0:00:43]} 19. Rae1 {[%emt 0:05:50]} a5 {[%emt 0:03:56]} 20. g3 {[%emt 0:00:35][%cal Bg2g3,Bg3g4][%mdl 32]} Rfe8 {[%emt 0:03:16]} 21. Ne5 {[%emt 0:01:58]} Bxe5 {[%emt 0:06:41]} 22. fxe5 {[%emt 0:00:09]} f5 {[%emt 0:00:04]} (22... fxe5 $5 {[%cal Re5e4]} 23. bxa5 bxa5 $11) 23. g4 {[%emt 0:00:51]} Bc6 {[%emt 0:03:25]} 24. Rf2 {[%emt 0:04:25]} Rf8 {[%emt 0:01:03]} 25. Ref1 {[%emt 0:00:42]} Rf7 {[%emt 0:05:31]} 26. Qf3 {[%emt 0:05:47]} Rcf8 {[%emt 0:02:47]} 27. Qh3 {[%emt 0:00:08]} Ba4 {[%emt 0:01:02] [#] White must now prevent ...Bxc2.} 28. Bb1 {[%emt 0:00:07]} Qe8 {[%emt 0:03:40]} 29. Bc1 {[%emt 0:03:25]} g6 {[%emt 0:01:20]} 30. Qh4 {[%emt 0:01:07] Weighted Error Value: White=0.06 (flawless) /Black=0.06 (flawless)} 1/2-1/2

[Event "Croatian 1A League 2022"]
[Site "Porec"]
[Date "2022.09.27"]
[Round "4.22"]
[White "Plenca, Julijan"]
[Black "Trbojevic, Mladen"]
[Result "1-0"]
[ECO "C45"]
[WhiteElo "2447"]
[BlackElo "2332"]
[Annotator "TA"]
[PlyCount "159"]
[EventDate "2022.09.24"]
[EventType "team-tourn"]
[EventCountry "CRO"]
[SourceTitle "playchess.com"]
[Source "ChessBase"]
[SourceQuality "1"]
[TimeControl "40/5400+30:1800+30"]

{[%evp 14,159,-14,-8,0,-14,-7,-9,0,-26,0,-6,0,0,0,0,0,0,0,0,0,0,0,0,0,0,0,0,40,44,53,46,43,51,52,22,120,112,108,50,47,50,78,74,81,44,48,20,192,108,116,103,110,115,106,110,106,93,80,92,80,83,143,62,62,63,62,62,48,47,47,47,48,22,22,22,23,23,23,30,30,22,30,30,30,14,14,16,16,23,37,37,37,37,45,45,45,45,45,45,45,45,45,45,45,45,45,45,45,45,45,22,72,72,72,72,72,67,75,72,72,72,72,72,75,75,75,75,75,75,75,75,74,67,72,67,72,67,75,75,29949,29973,29985,29985,29985,29986,29986,29987]} 1. e4 {[%emt 0:00:04][%cal Be2e4,Be4e5][%mdl 32]} e5 {[%emt 0:00:25]} 2. d4 {[%emt 0:00:05]} exd4 {[%emt 0:00:31]} 3. Nf3 {[%emt 0:00:03]} Nc6 {[%emt 0:00:58]} 4. Nxd4 {[%emt 0:00:08]} Nf6 {[%emt 0:00:51]} 5. Nxc6 {[%emt 0:00:15]} bxc6 {[%emt 0:00:14]} 6. e5 {[%emt 0:00:06]} Qe7 {[%emt 0:00:29]} 7. Qe2 {[%emt 0:00:04]} Nd5 {[%emt 0:00:20]} 8. h4 {[%emt 0:00:09]} f6 {[%emt 0:02:57] C45: Scotch Game.} 9. c4 {[%emt 0:00:36]} Ba6 {[%emt 0:00:51]} 10. exf6 {[%emt 0:06:25]} Nxf6 {[%emt 0:02:28] The position is equal.} 11. Nc3 {[%emt 0:03:40]} Qxe2+ {[%emt 0:28:28]} (11... O-O-O {keeps more tension.} 12. Be3 d5 13. O-O-O Bxc4 14. Qc2 Bxf1 15. Rhxf1 Qb4) 12. Bxe2 {[%emt 0:00:30]} Bb4 {[%emt 0:00:06]} 13. Bd2 {[%emt 0:00:14]} O-O {[%emt 0:00:21]} 14. O-O {[%emt 0:14:05]} Rae8 {[%emt 0:04:37] ...Bxc3 is the strong threat.} 15. Rfe1 {[%emt 0:02:42]} Bc5 {[%emt 0:08:59][%cal Of6d5] [#]} 16. Rad1 $146 {[%emt 0:08:07]} ({Predecessor:} 16. Nd1 Ne4 17. Be3 Bb4 18. Rf1 Nd2 19. a3 Ba5 20. b4 Bb6 21. Re1 Bxc4 22. Bxd2 Rxe2 23. Rxe2 Bxe2 {0-1 (37) Shyam,N (2442)-Jacobson,B (2530) Chess.com INT 2021}) 16... Ne4 {[%emt 0:22:53]} 17. Nxe4 {[%emt 0:00:14]} Rxe4 {[%emt 0:00:05]} 18. Bf3 {[%emt 0:00:49]} Rxh4 {[%emt 0:07:22]} 19. b3 {[%emt 0:02:15]} Rd4 {[%emt 0:02:55][%cal Od4d2]} 20. Ba5 {[%emt 0:00:41]} Rxd1 {[%emt 0:08:22]} 21. Rxd1 {[%emt 0:00:14]} Bd6 {[%emt 0:00:28]} 22. c5 $1 {[%emt 0:00:46]} Bxc5 {[%emt 0:02:45]} 23. Rxd7 {[%emt 0:00:07]} Rf7 {[%emt 0:01:56]} 24. Rd2 {[%emt 0:00:15][%mdl 1024] White has compensation.} Bb6 {[%emt 0:00:51] [#]} (24... Bd6 $11) 25. Bb4 $1 $16 {[%emt 0:00:07] Rd8+ would kill now.} g5 {[%emt 0:01:38]} (25... Rf4 $2 26. Rd8+ Kf7 27. Rf8+ Ke6 28. Rxf4 $18) 26. a4 {[%emt 0:00:55]} (26. Bxc6 $16 {Black must now prevent Bd5.} Rf5 27. g3) 26... Rf4 $14 {[%emt 0:00:33]} 27. Rd8+ $1 {[%emt 0:01:01]} Kg7 {[%emt 0:00:23]} 28. Bd2 {[%emt 0:01:24]} Rf5 {[%emt 0:01:12][%cal Og5g4]} 29. Rd7+ {[%emt 0:00:52]} Kg8 {[%emt 0:00:16]} 30. Bc3 {[%emt 0:02:00]} Rf7 $2 {[%emt 0:00:15] [#]} (30... g4 $11 31. Bxg4 Rxf2) 31. Rd2 {[%emt 0:00:27]} (31. Rd8+ $1 $18 Rf8 32. Rxf8+ Kxf8 33. b4 (33. Bxc6 Bd3 $14)) 31... Bc5 $16 {[%emt 0:00:46]} 32. Bxc6 {[%emt 0:00:26]} Kf8 {[%emt 0:00:31]} 33. b4 {[%emt 0:03:53]} Bd6 {[%emt 0:00:11]} 34. b5 {[%emt 0:00:15]} Bc8 {[%emt 0:00:40]} 35. Bd4 {[%emt 0:00:07] White is more active.} a6 {[%emt 0:00:33]} 36. Be3 {[%emt 0:00:22] Strongly threatening b6.} axb5 {[%emt 0:00:26]} 37. axb5 {[%emt 0:00:05] aiming for b6.} Bd7 {[%emt 0:00:43]} ({Black should play} 37... Be7) 38. Bxg5 {[%emt 0:01:34]} ({Better is} 38. Bxd7 $16 Rxd7 39. Bxg5) 38... Bxc6 $14 {[%emt 0:00:31]} 39. bxc6 $16 {[%emt 0:00:07][%mdl 4096] Endgame KRB-KRB} Rf5 {[%emt 0:00:15]} 40. Be3 {[%emt 0:00:00][%cal Od2d6] Hoping for Rxd6!} Ke7 {[%emt 0:00:00]} 41. g4 {[%emt 0:03:24]} Ra5 {[%emt 0:09:04]} 42. Kg2 {[%emt 0:00:47]} Ra4 {[%emt 0:01:17]} 43. g5 {[%emt 0:01:28]} Ke6 {[%emt 0:11:50]} 44. Rd1 {[%emt 0:01:42]} Kf5 {[%emt 0:04:17]} 45. Rh1 {[%emt 0:01:12]} Kg6 {[%emt 0:00:39]} 46. Rh6+ {[%emt 0:00:23]} Kg7 {[%emt 0:00:26]} 47. Rf6 {[%emt 0:02:12]} Rc4 {[%emt 0:01:37]} 48. f4 {[%emt 0:01:46]} Rxc6 {[%emt 0:00:27]} 49. Bd4 {[%emt 0:02:00] White threatens Rxd6+ and mate.} Kg8 {[%emt 0:00:30]} 50. Kf3 {[%emt 0:00:21]} Rc4 {[%emt 0:01:18]} 51. Be3 {[%emt 0:00:14]} Be7 {[%emt 0:01:24]} 52. Re6 {[%emt 0:00:09]} Kf7 {[%emt 0:00:12]} 53. Rh6 {[%emt 0:00:06]} Kg8 {[%emt 0:00:22]} 54. Kg4 {[%emt 0:01:15]} Re4 {[%emt 0:00:13]} 55. Bd2 {[%emt 0:00:19]} Bd6 {[%emt 0:00:47]} 56. Kf5 {[%emt 0:01:03]} Rd4 {[%emt 0:02:18]} 57. Be3 {[%emt 0:00:08]} Rd5+ {[%emt 0:00:59]} 58. Ke4 {[%emt 0:01:05]} Ra5 {[%emt 0:00:16]} 59. Rf6 {[%emt 0:00:17]} Be7 {[%emt 0:01:07]} 60. Re6 {[%emt 0:00:12]} Kf7 {[%emt 0:00:57]} 61. Rh6 {[%emt 0:00:12]} Kg8 {[%emt 0:00:11]} 62. Bd4 {[%emt 0:00:33] Threatening Be5.} Bxg5 {[%emt 0:01:18]} 63. fxg5 {[%emt 0:00:06]} Rxg5 $11 {[%emt 0:00:03] KRB-KR} 64. Rc6 {[%emt 0:00:30]} h5 {[%emt 0:00:25]} 65. Rxc7 {[%emt 0:00:17]} Kf8 {[%emt 0:00:37]} 66. Bf6 {[%emt 0:00:14]} Ra5 {[%emt 0:00:28]} 67. Be5 {[%emt 0:00:06]} Ke8 {[%emt 0:00:34]} 68. Kf5 {[%emt 0:00:11]} Kd8 {[%emt 0:00:17][%cal Oa5e5]} 69. Rh7 {[%emt 0:00:17]} Ra6 {[%emt 0:00:29]} 70. Ke4 {[%emt 0:00:25]} Ke8 {[%emt 0:00:44]} 71. Kd5 {[%emt 0:00:12]} Kf8 {[%emt 0:00:30]} 72. Bd4 {[%emt 0:01:41]} Kg8 {[%emt 0:00:26]} 73. Rb7 {[%emt 0:00:56]} Rg6 {[%emt 0:00:58]} 74. Be5 {[%emt 0:00:21]} h4 {[%emt 0:00:47]} 75. Ke4 {[%emt 0:00:26]} Rg1 {[%emt 0:00:33]} 76. Kf5 {[%emt 0:00:29] Threatening mate with Ke6.} Rf1+ $2 {[%emt 0:00:16][%mdl 8192]} (76... Rc1 $16) 77. Ke6 {[%emt 0:00:06] White mates.} Re1 {[%emt 0:00:46]} 78. Rg7+ {[%emt 0:00:11]} Kf8 {[%emt 0:01:03]} 79. Rh7 {[%emt 0:00:14][%cal Rh7h8]} Rg1 80. Rxh4 {[%emt 0:00:17] Weighted Error Value: White=0.08 (flawless) /Black=0.13 (very precise)} 1-0

[Event "Croatian 1A League 2022"]
[Site "Porec"]
[Date "2022.09.27"]
[Round "4.23"]
[White "Krstic, Uros"]
[Black "Plenca, Jadranko"]
[Result "1/2-1/2"]
[ECO "C45"]
[WhiteElo "2323"]
[BlackElo "2412"]
[Annotator "TA"]
[PlyCount "39"]
[EventDate "2022.09.24"]
[EventType "team-tourn"]
[EventCountry "CRO"]
[SourceTitle "playchess.com"]
[Source "ChessBase"]
[SourceQuality "1"]
[TimeControl "40/5400+30:1800+30"]

{[%evp 11,26,-1,11,18,7,0,4,11,12,2,29,12,0,0,0,6,0]} 1. e4 {[%emt 0:00:13]} e5 {[%emt 0:01:24]} 2. Nf3 {[%emt 0:00:07]} Nc6 {[%emt 0:00:08]} 3. d4 {[%emt 0:00:06]} exd4 {[%emt 0:00:27]} 4. Nxd4 {[%emt 0:00:02]} Nf6 {[%emt 0:00:47]} 5. Nxc6 {[%emt 0:00:30]} bxc6 {[%emt 0:00:09]} 6. Nc3 {[%emt 0:00:13]} d5 {[%emt 0:02:26]} 7. exd5 {[%emt 0:04:33] C45: Scotch Game.} cxd5 {[%emt 0:00:05]} 8. Bb5+ {[%emt 0:06:35]} Bd7 {[%emt 0:00:58]} 9. Bxd7+ {[%emt 0:37:53]} Qxd7 {[%emt 0:00:11]} 10. Bg5 {[%emt 0:00:59]} Qe6+ {[%emt 0:06:05]} 11. Qe2 {[%emt 0:05:37]} (11. Kf1 $5 {[%cal Rg5f6]}) 11... Bb4 {[%emt 0:12:51] The position is equal.} 12. Bxf6 {[%emt 0:01:23]} gxf6 {[%emt 0:00:08]} 13. O-O {[%emt 0:10:16] [#] Black must now prevent Qb5+.} Bxc3 {[%emt 0:00:14] [#] An even fight not without its subleties.  Weighted Error Value: White=0.04 (flawless) /Black=0.03 (flawless)} {Predecessor:} 14. Qb5+ $146 c6 15. Qb7 O-O 16. bxc3 Rfe8 17. Rab1 Rad8 18. Qc7 Rd7 19. Qg3+ Kh8 20. Rb8 {1-0 (47) Limbourg,P (2228)-Weinert,C (1989) SVR 2009} 1/2-1/2

[Event "Croatian 1A League 2022"]
[Site "Porec"]
[Date "2022.09.27"]
[Round "4.24"]
[White "Bobanac, Miro"]
[Black "Vernacki, Srdjan"]
[Result "1/2-1/2"]
[ECO "A30"]
[WhiteElo "2245"]
[BlackElo "2280"]
[Annotator "TA"]
[PlyCount "115"]
[EventDate "2022.09.24"]
[EventType "team-tourn"]
[EventCountry "CRO"]
[SourceTitle "playchess.com"]
[Source "ChessBase"]
[SourceQuality "1"]
[TimeControl "40/5400+30:1800+30"]

{[%evp 17,115,30,34,27,31,9,22,26,17,18,21,6,4,3,0,0,-9,-19,0,0,0,0,10,0,0,-28,0,0,0,0,0,0,0,0,0,0,10,0,0,0,0,0,0,0,12,0,7,0,0,0,0,0,0,0,12,7,31,43,41,1,2,0,0,0,0,0,0,0,0,0,0,0,0,0,0,0,0,0,0,0,0,0,0,0,0,0,256,0,0,0,0,0,0,0,0,0,0,0,0,0]} 1. Nf3 {[%emt 0:00:15]} c5 {[%emt 0:00:17]} 2. c4 {[%emt 0:00:44]} Nf6 {[%emt 0:00:08]} 3. Nc3 {[%emt 0:00:32]} e6 {[%emt 0:00:11]} 4. g3 {[%emt 0:00:37]} b6 {[%emt 0:00:10]} 5. Bg2 {[%emt 0:00:25]} Bb7 {[%emt 0:00:04]} 6. O-O {[%emt 0:00:14]} Be7 {[%emt 0:01:01]} 7. b3 {[%emt 0:01:21]} O-O {[%emt 0:00:06]} 8. Bb2 {[%emt 0:00:09]} a6 {[%emt 0:00:50]} 9. e3 {[%emt 0:02:13]} d6 {[%emt 0:00:29]} 10. d3 {[%emt 0:02:14] A30: Symmetrical English: Double Fianchetto and Hedgehog.} Qc7 {[%emt 0:00:46] [#]} 11. Ne1 $146 {[%emt 0:03:24]} ({Predecessor:} 11. Qe2 Nbd7 12. Ne1 d5 13. f4 Rad8 14. cxd5 Nxd5 15. Ne4 N5f6 16. Nf2 b5 17. Nf3 {½-½ (25) Saric,A (2559)-Livaic,L (2493) Mali Losinj 2019}) 11... Rd8 {[%emt 0:03:37]} 12. g4 {[%emt 0:03:10]} d5 {[%emt 0:08:58]} 13. g5 {[%emt 0:04:13]} Ne8 {[%emt 0:00:26]} 14. Qg4 {[%emt 0:00:20]} dxc4 {[%emt 0:09:48]} 15. dxc4 {[%emt 0:04:41]} Bxg2 {[%emt 0:03:29]} 16. Nxg2 {[%emt 0:00:51]} Nc6 {[%emt 0:02:54]} 17. Rad1 {[%emt 0:12:54]} (17. Ne4 {keeps more tension.} b5 18. Nh4 Ne5 19. Bxe5 Qxe5 20. Nf3) 17... Ne5 {[%emt 0:21:22]} 18. Qe2 {[%emt 0:02:39]} Nd6 {[%emt 0:05:26]} (18... Bxg5 $2 19. f4 $16) 19. f4 {[%emt 0:00:21]} Nc6 {[%emt 0:00:18][%cal Ob6b5]} 20. Nh4 {[%emt 0:12:20]} b5 {[%emt 0:02:52]} 21. Nf3 {[%emt 0:06:11]} bxc4 {[%emt 0:06:29]} (21... Qb7 $5 {[%cal Rb5c4]}) 22. bxc4 {[%emt 0:00:09]} Nf5 {[%emt 0:00:15]} 23. Ne4 {[%emt 0:02:49]} Rxd1 {[%emt 0:06:37]} 24. Rxd1 {[%emt 0:00:12]} Rd8 {[%emt 0:01:28]} 25. Rxd8+ {[%emt 0:02:01]} Qxd8 {[%emt 0:00:25]} 26. Ng3 {[%emt 0:00:15]} Nd6 {[%emt 0:04:10][%cal Bf5d6,Bd6c8,Bc8b6,Bb6d7][%mdl 32]} 27. Ne5 {[%emt 0:05:32]} Qb6 {[%emt 0:02:42]} 28. Nxc6 {[%emt 0:06:53]} Qxc6 {[%emt 0:00:05]} 29. Be5 {[%emt 0:00:30]} Nc8 {[%emt 0:15:00]} 30. Kf2 {[%emt 0:08:32]} Nb6 {[%emt 0:00:16]} 31. Qc2 {[%emt 0:00:22]} Nd7 {[%emt 0:02:29]} 32. Bb2 {[%emt 0:00:32]} Nb6 {[%emt 0:01:55]} 33. Be5 {[%emt 0:04:08]} Nd7 {[%emt 0:00:07]} 34. Ba1 {[%emt 0:01:57]} f6 {[%emt 0:00:56]} 35. h4 {[%emt 0:00:13]} Nb6 {[%emt 0:01:17]} 36. gxf6 {[%emt 0:04:34]} (36. Qd3 {looks sharper.} e5 37. Nf5 Qe6 38. Nxe7+ Qxe7 39. gxf6 Qxf6 40. Bxe5 Qxh4+ 41. Ke2) 36... Bxf6 {[%emt 0:00:15]} 37. Bxf6 {[%emt 0:00:31]} gxf6 $11 {[%emt 0:00:01][%mdl 4096] Endgame KQN-KQN} 38. Qd3 {[%emt 0:05:07]} Qd7 {[%emt 0:00:44]} 39. Qe4 {[%emt 0:00:58]} f5 {[%emt 0:00:31]} 40. Qc2 {[%emt 0:00:00] Prevents Qd2+.} Kf7 {[%emt 0:00:00]} 41. Qc3 {[%emt 0:03:34]} Qe7 {[%emt 0:17:00]} 42. h5 {[%emt 0:01:33]} Qf6 {[%emt 0:01:20] Inhibits Qh8.} 43. Qb3 {[%emt 0:00:38]} Nd7 {[%emt 0:00:17]} 44. Qb7 {[%emt 0:00:32][%csl LRa6,LRd7]} Ke7 {[%emt 0:00:15]} 45. Qxa6 {[%emt 0:00:51]} Qb2+ {[%emt 0:06:24]} 46. Ne2 {[%emt 0:09:30]} Nf6 {[%emt 0:01:04]} 47. Qa7+ {[%emt 0:02:34]} Ke8 {[%emt 0:00:32]} 48. Qa8+ {[%emt 0:06:34]} Kf7 {[%emt 0:00:12]} 49. Qa7+ {[%emt 0:00:10]} Kg8 {[%emt 0:01:12]} 50. h6 {[%emt 0:00:34][%csl Gh6][%cal Ra7g7] [#]} Ng4+ {[%emt 0:00:33]} 51. Kf3 {[%emt 0:00:07]} Nxh6 $2 {[%emt 0:00:40][%mdl 8192]} (51... Qa1 $11 {and Black stays safe.} 52. Qb8+ Kf7 53. Qb7+ Kg6 54. Qg7+ Qxg7 55. hxg7 Kxg7) 52. Qxc5 $2 {[%emt 0:00:17]} (52. Qe7 $18) 52... Qb7+ {[%emt 0:01:46] The position is equal.} 53. Kg3 {[%emt 0:04:02] And now Nd4 would win.} Qg7+ {[%emt 0:01:13]} 54. Kf3 {[%emt 0:00:49] [#] aiming for Qc8+.} Qb7+ {[%emt 0:01:53]} 55. Kg3 {[%emt 0:00:08] Threatens to win with Nd4.} Qg7+ {[%emt 0:03:25]} 56. Kf3 {[%emt 0:00:08] Qc8+ is the strong threat.} Qb7+ {[%emt 0:01:01]} 57. Kg3 {[%emt 0:00:07] Hoping for Nd4.} Ng4 {[%emt 0:00:48]} 58. Qb5 {[%emt 0:00:27] Weighted Error Value: White=0.12 (very precise) /Black=0.09 (flawless)} 1/2-1/2

[Event "Croatian 1A League 2022"]
[Site "Porec"]
[Date "2022.09.27"]
[Round "4.25"]
[White "Cheparinov, Ivan"]
[Black "Vavulin, Maxim"]
[Result "1/2-1/2"]
[ECO "E15"]
[WhiteElo "2686"]
[BlackElo "2550"]
[Annotator "TA"]
[PlyCount "72"]
[EventDate "2022.09.24"]
[EventType "team-tourn"]
[EventCountry "CRO"]
[SourceTitle "playchess.com"]
[Source "ChessBase"]
[SourceQuality "1"]
[TimeControl "40/5400+30:1800+30"]

{[%evp 18,72,14,6,10,0,33,32,21,12,20,19,28,0,-1,-3,0,-7,6,6,6,4,0,0,0,0,0,0,0,0,0,0,0,0,0,0,16,10,12,10,6,10,11,-4,-4,-16,0,0,0,-17,-13,-11,2,2,2,2,3]} 1. d4 {[%emt 0:00:04]} Nf6 {[%emt 0:00:11]} 2. c4 {[%emt 0:00:05]} e6 {[%emt 0:00:08]} 3. Nf3 {[%emt 0:00:10]} b6 {[%emt 0:00:20]} 4. g3 {[%emt 0:00:06]} Ba6 {[%emt 0:00:10]} 5. b3 {[%emt 0:00:06]} Bb4+ {[%emt 0:03:56]} 6. Bd2 {[%emt 0:00:40]} Be7 {[%emt 0:00:08]} 7. Nc3 {[%emt 0:00:54]} d5 {[%emt 0:03:40]} 8. cxd5 {[%emt 0:00:12]} exd5 {[%emt 0:00:10]} 9. Bg2 {[%emt 0:00:10]} O-O {[%emt 0:00:23]} 10. O-O {[%emt 0:00:06]} Nbd7 {[%emt 0:01:32][%cal Bb8d7,Bd7c5,Bc5e4][%mdl 32] E15: Queen's Indian: 4 g3 sidelines, 4 g3 Ba6 and 4 g3 Bb7 early deviations.} 11. Rc1 {[%emt 0:07:51]} c5 {[%emt 0:09:01]} 12. Bf4 {[%emt 0:08:50]} Re8 {[%emt 0:15:17] White is slightly better.} 13. dxc5 {[%emt 0:04:01]} Nxc5 {[%emt 0:01:43] [#]} 14. Nd4 $146 {[%emt 0:00:15] next Nc6 is good for White.} ({Predecessor:} 14. Bg5 Nce4 15. Bxf6 Bxf6 16. Nxd5 Bxe2 17. Nxf6+ Nxf6 18. Qxd8 Raxd8 19. Rfe1 h6 20. Rc7 Bxf3 {0-1 (66) Potapova,M (2377)-Schrik,R (2194) Chess.com INT 2019}) 14... Qd7 {[%emt 0:02:09] Inhibits Nc6.} 15. Qc2 {[%emt 0:21:06]} Nce4 {[%emt 0:12:58] The position is equal.} 16. Qb2 {[%emt 0:11:01] Against Ba3} Rac8 {[%emt 0:12:34]} 17. Rfd1 {[%emt 0:01:48]} Bb4 {[%emt 0:06:29]} 18. Nxe4 {[%emt 0:12:05]} Nxe4 {[%emt 0:00:20]} 19. Rxc8 {[%emt 0:02:32]} Rxc8 {[%emt 0:07:28]} 20. Be3 {[%emt 0:00:11]} h6 {[%emt 0:01:34]} 21. Rc1 {[%emt 0:14:40]} Rc5 {[%emt 0:09:07]} 22. Rc2 {[%emt 0:00:00]} Qc8 {[%emt 0:01:23]} 23. Qc1 {[%emt 0:06:47]} Nc3 {[%emt 0:01:02][%cal Oc3e2] [#] And now ...Nxe2+! would win.} 24. Qf1 {[%emt 0:01:03]} Ne4 {[%emt 0:07:32]} 25. Bh3 {[%emt 0:00:26]} Qe8 {[%emt 0:02:30]} 26. Qc1 {[%emt 0:01:40]} Bc8 {[%emt 0:01:06]} 27. Bg2 {[%emt 0:02:47]} Bd7 {[%emt 0:00:08]} 28. a3 {[%emt 0:00:59]} Rxc2 {[%emt 0:00:23]} 29. Nxc2 {[%emt 0:00:04]} Bc5 {[%emt 0:00:55]} 30. Nd4 {[%emt 0:02:14]} Qe5 {[%emt 0:00:29]} 31. Qb2 {[%emt 0:01:19]} b5 {[%emt 0:00:29]} 32. b4 {[%emt 0:01:01]} Bb6 {[%emt 0:00:35]} 33. Bxe4 {[%emt 0:01:07]} Qxe4 {[%emt 0:00:29]} 34. Qc2 {[%emt 0:00:13]} Bxd4 {[%emt 0:00:34]} 35. Qxe4 {[%emt 0:00:04][%mdl 64] [#] Remove Defender} dxe4 {[%emt 0:00:05]} 36. Bxd4 {[%emt 0:00:02]} a6 {[%emt 0:00:01] An even fight not without its subleties.  Weighted Error Value: White=0.04 (flawless) /Black=0.05 (flawless)} 1/2-1/2